lending/lending_fUSD_20250819
["ID","MTS","AMOUNT","RATE_DAILY","PERIOD"]
[380274810,1755631035823,-500.0,0.00022999,30]
[380274811,1755631035848,-500.0,0.00022999,30]
[380274812,1755631035873,-500.0,0.00022999,30]
[380274813,1755631035898,-500.0,0.00022999,30]
[380274814,1755631035923,-400.0,0.00022999,30]
[380274815,1755631035949,-400.0,0.00022999,30]
[380274816,1755631035974,-500.0,0.00022999,30]
[380274817,1755631035998,-1812.27,0.00022999,30]
[380274818,1755631036023,-500.0,0.00022999,30]
[380274819,1755631036047,-400.0,0.00022999,30]
[380274820,1755631036071,-500.0,0.00022999,30]
[380274821,1755631036097,-500.0,0.00022999,30]
[380274822,1755631036122,-500.0,0.00022999,30]
[380274823,1755631036147,-500.0,0.00022999,30]
[380274824,1755631036172,-400.0,0.00022999,30]
[380274825,1755631036197,-400.0,0.00022999,30]
[380274826,1755631036222,-500.0,0.00022999,30]
[380274827,1755631036250,-500.0,0.00022999,30]
[380274828,1755631036275,-500.0,0.00022999,30]
[380274829,1755631036300,-202.75,0.00022999,30]
[380274830,1755631036325,-434.72,0.00022999,30]
[380274831,1755631036350,-276.9438436,0.00022999,30]
[380274832,1755631036375,-400.0,0.00022999,30]
[380274833,1755631036398,-400.0,0.00022999,30]
[380274834,1755631036425,-1807.74,0.00022999,30]
[380274835,1755631036451,-7013.86,0.00022999,30]
[380274836,1755631036477,-1435.4,0.00022999,30]
[380274837,1755631036502,-400.0,0.00022999,30]
[380274838,1755631036526,-527.0,0.00022999,30]
[380274839,1755631036552,-1890.92,0.00022999,30]
[380274840,1755631036578,-198.79940563,0.00022999,30]
[380274841,1755631036604,-4142.44,0.00022999,30]
[380274842,1755631036629,-400.0,0.00022999,30]
[380274843,1755631036654,-400.0,0.00022999,30]
[380274844,1755631036679,-400.0,0.00022999,30]
[380274845,1755631036704,-400.0,0.00022999,30]
[380274846,1755631036729,-1487.81,0.00022999,30]
[380274847,1755631036757,-1775.43,0.00022999,30]
[380274848,1755631036782,-400.0,0.00022999,30]
[380274849,1755631036809,-400.0,0.00022999,30]
[380274850,1755631036836,-824.79,0.00022999,30]
[380274851,1755631036860,-9303.97,0.00022999,30]
[380274852,1755631036884,-2003.15,0.00022999,30]
[380274853,1755631036910,-400.0,0.00022999,30]
[380274854,1755631036935,-1357.73,0.00022999,30]
[380274855,1755631036959,-3458.05,0.00022999,30]
[380274856,1755631036984,-400.0,0.00022999,30]
[380274857,1755631037008,-400.0,0.00022999,30]
[380274858,1755631037031,-400.0,0.00022999,30]
[380274859,1755631037056,-408.14,0.00022999,30]
[380274860,1755631037081,-400.0,0.00022999,30]
[380274861,1755631037106,-1146.31,0.00022999,30]
[380274862,1755631037132,-400.0,0.00022999,30]
[380274863,1755631037157,-400.0,0.00022999,30]
[380274864,1755631037181,-1420.57,0.00022999,30]
[380274865,1755631037207,-2399.65,0.00022999,30]
[380274866,1755631037232,-500.0,0.00022999,30]
[380274867,1755631037256,-209.67,0.00022999,30]
[380274868,1755631037281,-5837.98,0.00022999,30]
[380274869,1755631037309,-8152.85,0.00022999,30]
[380274870,1755631037335,-400.0,0.00022999,30]
[380274871,1755631037362,-400.0,0.00022999,30]
[380274872,1755631037388,-8014.73,0.00022999,30]
[380274873,1755631037413,-400.0,0.00022999,30]
[380274874,1755631037437,-400.0,0.00022999,30]
[380274875,1755631037463,-3351.12,0.00022999,30]
[380274876,1755631037487,-713.75,0.00022999,30]
[380274877,1755631037512,-444.69,0.00022999,30]
[380274878,1755631037537,-400.0,0.00022999,30]
[380274879,1755631037564,-400.0,0.00022999,30]
[380274880,1755631037588,-400.0,0.00022999,30]
[380274881,1755631037613,-400.0,0.00022999,30]
[380274882,1755631037640,-630.29,0.00022999,30]
[380274883,1755631037664,-5044.7,0.00022999,30]
[380274884,1755631037688,-840.72,0.00022999,30]
[380274885,1755631037713,-2077.84,0.00022999,30]
[380274886,1755631037737,-3116.05,0.00022999,30]
[380274887,1755631037763,-400.0,0.00022999,30]
[380274888,1755631037789,-200.0,0.00022999,30]
[380274889,1755631037816,-400.0,0.00022999,30]
[380274890,1755631037842,-755.9,0.00022999,30]
[380274891,1755631037867,-400.0,0.00022999,30]
[380274892,1755631037891,-3767.8,0.00022999,30]
[380274893,1755631037915,-981.8,0.00022999,30]
[380274894,1755631037939,-400.0,0.00022999,30]
[380274895,1755631037964,-665.7,0.00022999,30]
[380274896,1755631037988,-458.85,0.00022999,30]
[380274897,1755631038013,-1623.73,0.00022999,30]
[380274898,1755631038302,-400.0,0.00022999,30]
[380274899,1755631038331,-1621.47,0.00022999,30]
[380274900,1755631038359,-7442.7,0.00022999,30]
[380274901,1755631038385,-400.0,0.00022999,30]
[380274902,1755631038410,-1470.22,0.00022999,30]
[380274903,1755631038434,-3397.55,0.00022999,30]
[380274904,1755631038459,-400.0,0.00022999,30]
[380274905,1755631038483,-400.0,0.00022999,30]
[380274906,1755631038508,-581.67,0.00022999,30]
[380274907,1755631038533,-2718.91,0.00022999,30]
[380274908,1755631038560,-400.0,0.00022999,30]
[380274909,1755631038585,-2098.94,0.00022999,30]
[380274910,1755631038609,-1256.26,0.00022999,30]
[380274911,1755631038634,-1449.63,0.00022999,30]
[380274912,1755631038661,-400.0,0.00022999,30]
[380274913,1755631038689,-531.59,0.00022999,30]
[380274914,1755631038715,-1569.5,0.00022999,30]
[380274915,1755631038743,-400.0,0.00023273,30]
[380274916,1755631038771,-400.0,0.00023273,30]
[380274917,1755631038796,-418.91,0.00023273,30]
[380274918,1755631038822,-400.0,0.00023273,30]
[380274919,1755631038847,-400.0,0.00023273,30]
[380274920,1755631038872,-400.0,0.00023273,30]
[380274921,1755631038897,-400.0,0.00023273,30]
[380274922,1755631038923,-591.41,0.00023273,30]
[380274923,1755631038948,-400.0,0.00023273,30]
[380274924,1755631038973,-1211.51,0.00023273,30]
[380274925,1755631038998,-657.43,0.00023273,30]
[380274926,1755631039024,-1321.19,0.00023273,30]
[380274927,1755631039049,-2333.41,0.00023273,30]
[380274928,1755631039074,-174.72729795,0.00023273,30]
[380274929,1755631039099,-3141.86,0.00023273,30]
[380274930,1755631039125,-400.0,0.00023273,30]
[380274931,1755631039149,-400.0,0.00023273,30]
[380274932,1755631039172,-441.64,0.00023273,30]
[380274933,1755631039198,-895.33,0.00023273,30]
[380274934,1755631039223,-182.7,0.00023273,30]
[380274935,1755631039247,-1312.21,0.00023273,30]
[380274936,1755631039270,-5048.43,0.00023273,30]
[380274937,1755631039294,-610.43,0.00023273,30]
[380274938,1755631039321,-912.37,0.00023273,30]
[380274939,1755631039347,-2638.42,0.00023273,30]
[380274940,1755631039372,-2777.22,0.00023273,30]
[380274941,1755631039397,-542.11,0.00023273,30]
[380274942,1755631039421,-400.0,0.00023273,30]
[380274943,1755631039445,-400.0,0.00023273,30]
[380274944,1755631039470,-854.75,0.00023273,30]
[380274945,1755631039495,-400.0,0.00023273,30]
[380274946,1755631039521,-582.29,0.00023273,30]
[380274947,1755631039548,-2058.34,0.00023273,30]
[380274948,1755631039578,-807.81,0.00023273,30]
[380274949,1755631039603,-2108.39,0.00023273,30]
[380274950,1755631039628,-400.0,0.00023273,30]
[380274951,1755631039652,-3236.93,0.00023273,30]
[380274952,1755631039677,-2755.38,0.00023273,30]
[380274953,1755631039702,-494.07,0.00023273,30]
[380274954,1755631039727,-771.8,0.00023273,30]
[380274955,1755631039754,-400.0,0.00023273,30]
[380274956,1755631039778,-1485.66,0.00023273,30]
[380274957,1755631039804,-400.0,0.00023273,30]
[380274958,1755631039829,-514.22,0.00023273,30]
[380274959,1755631039856,-1688.58,0.00023273,30]
[380274960,1755631039880,-400.0,0.00023273,30]
[380274961,1755631039905,-2731.01,0.00023273,30]
[380274962,1755631039929,-400.0,0.00023273,30]
[380274963,1755631039953,-441.94,0.00023273,30]
[380274964,1755631039977,-716.5,0.00023273,30]
[380274965,1755631040001,-408.32,0.00023273,30]
[380274966,1755631040027,-400.0,0.00023273,30]
[380274967,1755631040052,-1382.11,0.00023273,30]
[380274968,1755631040078,-2951.24,0.00023273,30]
[380274969,1755631040103,-400.0,0.00023273,30]
[380274970,1755631040128,-6757.75,0.00023273,30]
[380274971,1755631040152,-812.97,0.00023273,30]
[380274972,1755631040176,-400.0,0.00023273,30]
[380274973,1755631040201,-1417.55,0.00023273,30]
[380274974,1755631040226,-1007.53,0.00023273,30]
[380274975,1755631040252,-400.0,0.00023273,30]
[380274976,1755631040278,-2420.72,0.00023273,30]
[380274977,1755631040303,-447.89,0.00023273,30]
[380274978,1755631040331,-400.0,0.00023273,30]
[380274979,1755631040358,-400.0,0.00023273,30]
[380274980,1755631040384,-553.64,0.00023273,30]
[380274981,1755631040410,-401.73,0.00023273,30]
[380274982,1755631040436,-744.53,0.00023273,30]
[380274983,1755631040462,-1648.48,0.00023273,30]
[380274984,1755631040487,-1672.31,0.00023273,30]
[380274985,1755631040513,-8716.72,0.00023273,30]
[380274986,1755631040538,-1174.9,0.00023273,30]
[380274987,1755631040563,-324.49,0.00023273,30]
[380274988,1755631040588,-1247.73,0.00023273,30]
[380274989,1755631040615,-400.0,0.00023273,30]
[380274990,1755631040641,-2800.23,0.00023273,30]
[380274991,1755631040665,-298.74,0.00023273,30]
[380274992,1755631040931,-400.0,0.00023273,30]
[380274993,1755631040958,-1855.67,0.00023273,30]
[380274994,1755631040983,-269.07,0.00023273,30]
[380274995,1755631041007,-2735.6,0.00023273,30]
[380274996,1755631041031,-1549.4,0.00023273,30]
[380274997,1755631041056,-549.35,0.00023273,30]
[380274998,1755631041081,-1600.8,0.00023273,30]
[380274999,1755631041106,-1083.07,0.00023273,30]
[380275000,1755631041131,-375.57,0.00023273,30]
[380275001,1755631041157,-216.96,0.00023273,30]
[380275002,1755631041182,-2521.93,0.00023273,30]
[380275003,1755631041207,-407.03,0.00023273,30]
[380275004,1755631041234,-400.0,0.00023273,30]
[380275005,1755631041260,-1663.82,0.00023273,30]
[380275006,1755631041289,-1863.39,0.00023273,30]
[380275007,1755631041319,-2006.03,0.00023273,30]
[380275008,1755631041345,-867.04,0.00023273,30]
[380275009,1755631041371,-1558.27,0.00023273,30]
[380275010,1755631041397,-1625.91,0.00023273,30]
[380275011,1755631041422,-490.4,0.00023273,30]
[380275012,1755631041448,-400.0,0.00023273,30]
[380275013,1755631041475,-3914.85,0.00023273,30]
[380275014,1755631041501,-801.03,0.00023273,30]
[380275015,1755631041526,-400.0,0.00023273,30]
[380275016,1755631041551,-1784.81,0.00023273,30]
[380275017,1755631041581,-400.0,0.00023273,30]
[380275018,1755631041607,-1785.17,0.00023273,30]
[380275019,1755631041633,-2242.56,0.00023273,30]
[380275020,1755631041660,-1700.25,0.00023273,30]
[380275021,1755631041687,-834.13,0.00023273,30]
[380275022,1755631041713,-1018.63,0.00023273,30]
[380275023,1755631041739,-484.61,0.00023273,30]
[380275024,1755631041765,-400.0,0.00023273,30]
[380275025,1755631041790,-400.0,0.00023273,30]
[380275026,1755631041818,-223.99,0.00023273,30]
[380275027,1755631041846,-801.25,0.00023273,30]
[380275028,1755631041871,-1460.04,0.00023273,30]
[380275029,1755631041896,-4032.43,0.00023273,30]
[380275030,1755631041922,-2527.74,0.00023273,30]
[380275031,1755631041947,-4275.48,0.00023273,30]
[380275032,1755631041972,-400.0,0.00023273,30]
[380275033,1755631041997,-400.0,0.00023273,30]
[380275034,1755631042022,-1812.27,0.00023273,30]
[380275035,1755631042047,-400.0,0.00023273,30]
[380275036,1755631042077,-400.0,0.00023273,30]
[380275037,1755631042102,-400.0,0.00023273,30]
[380275038,1755631042128,-434.72,0.00023273,30]
[380275039,1755631042153,-312.14,0.00023273,30]
[380275040,1755631042180,-7013.86,0.00023273,30]
[380275041,1755631042206,-1807.74,0.00023273,30]
[380275042,1755631042231,-1435.4,0.00023273,30]
[380275043,1755631042257,-1890.92,0.00023273,30]
[380275044,1755631042282,-4142.44,0.00023273,30]
[380275045,1755631042308,-482.01993772,0.00023273,30]
[380275046,1755631042334,-400.0,0.00023273,30]
[380275047,1755631042359,-400.0,0.00023273,30]
[380275048,1755631042385,-400.0,0.00023273,30]
[380275049,1755631042412,-1487.81,0.00023273,30]
[380275050,1755631042438,-1775.43,0.00023273,30]
[380275051,1755631042463,-400.0,0.00023273,30]
[380275052,1755631042487,-824.79,0.00023273,30]
[380275053,1755631042513,-9303.97,0.00023273,30]
[380275054,1755631042538,-2003.15,0.00023273,30]
[380275055,1755631042563,-400.0,0.00023273,30]
[380275056,1755631042588,-1357.73,0.00023273,30]
[380275057,1755631042613,-3458.05,0.00023273,30]
[380275058,1755631042637,-400.0,0.00023273,30]
[380275059,1755631042662,-400.0,0.00023273,30]
[380275060,1755631042685,-1146.31,0.00023273,30]
[380275061,1755631042709,-400.0,0.00023273,30]
[380275062,1755631042733,-1420.57,0.00023273,30]
[380275063,1755631042762,-2399.65,0.00023273,30]
[380275064,1755631042786,-5837.98,0.00023273,30]
[380275065,1755631042812,-8152.85,0.00023273,30]
[380275066,1755631042837,-400.0,0.00023273,30]
[380275067,1755631042864,-8014.73,0.00023273,30]
[380275068,1755631042889,-298.49,0.00023273,30]
[380275069,1755631042914,-400.0,0.00023273,30]
[380275070,1755631042939,-3351.12,0.00023273,30]
[380275071,1755631042963,-713.75,0.00023273,30]
[380275072,1755631042988,-444.69,0.00023273,30]
[380275073,1755631043014,-400.0,0.00023273,30]
[380275074,1755631043038,-400.0,0.00023273,30]
[380275075,1755631043063,-630.29,0.00023273,30]
[380275076,1755631043088,-840.72,0.00023273,30]
[380275077,1755631043112,-5044.7,0.00023273,30]
[380275078,1755631043137,-3116.05,0.00023273,30]
[380275079,1755631043162,-2077.84,0.00023273,30]
[380275080,1755631043187,-400.0,0.00023273,30]
[380275081,1755631043212,-755.9,0.00023273,30]
[380275082,1755631043239,-400.0,0.00023273,30]
[380275083,1755631043265,-400.0,0.00023273,30]
[380275084,1755631043290,-3767.8,0.00023273,30]
[380275085,1755631043319,-981.8,0.00023273,30]
[380275086,1755631043345,-400.0,0.00023273,30]
[380275087,1755631043606,-458.85,0.00023273,30]
[380275088,1755631043630,-665.7,0.00023273,30]
[380275089,1755631043654,-1623.73,0.00023273,30]
[380275090,1755631043678,-400.0,0.00023273,30]
[380275091,1755631043702,-1621.47,0.00023273,30]
[380275092,1755631043728,-7442.7,0.00023273,30]
[380275093,1755631043755,-1470.22,0.00023273,30]
[380275094,1755631043785,-3397.55,0.00023273,30]
[380275095,1755631043814,-400.0,0.00023273,30]
[380275096,1755631043839,-400.0,0.00023273,30]
[380275097,1755631043864,-581.67,0.00023273,30]
[380275098,1755631043888,-2718.91,0.00023273,30]
[380275099,1755631043913,-2098.94,0.00023273,30]
[380275100,1755631043936,-1256.26,0.00023273,30]
[380275101,1755631043961,-1449.63,0.00023273,30]
[380275102,1755631043985,-219.15,0.00023273,30]
[380275103,1755631044012,-246.79,0.00023547,30]
[380275104,1755631044039,-400.0,0.00023547,30]
[380275105,1755631044066,-400.0,0.00023547,30]
[380275106,1755631044091,-400.0,0.00023547,30]
[380275107,1755631044116,-400.0,0.00023547,30]
[380275108,1755631044142,-400.0,0.00023547,30]
[380275109,1755631044167,-400.0,0.00023547,30]
[380275110,1755631044194,-591.41,0.00023547,30]
[380275111,1755631044219,-400.0,0.00023547,30]
[380275112,1755631044245,-1211.51,0.00023547,30]
[380275113,1755631044271,-657.43,0.00023547,30]
[380275114,1755631044296,-1321.19,0.00023547,30]
[380275115,1755631044323,-2333.41,0.00023547,30]
[380275116,1755631044348,-400.0,0.00023547,30]
[380275117,1755631044373,-3141.86,0.00023547,30]
[380275118,1755631044398,-400.0,0.00023547,30]
[380275119,1755631044423,-441.64,0.00023547,30]
[380275120,1755631044448,-895.33,0.00023547,30]
[380275121,1755631044473,-1312.21,0.00023547,30]
[380275122,1755631044496,-5048.43,0.00023547,30]
[380275123,1755631044522,-610.43,0.00023547,30]
[380275124,1755631044547,-912.37,0.00023547,30]
[380275125,1755631044574,-2638.42,0.00023547,30]
[380275126,1755631044599,-2777.22,0.00023547,30]
[380275127,1755631044626,-542.11,0.00023547,30]
[380275128,1755631044652,-400.0,0.00023547,30]
[380275129,1755631044676,-169.52,0.00023547,30]
[380275130,1755631044701,-854.75,0.00023547,30]
[380275131,1755631044726,-400.0,0.00023547,30]
[380275132,1755631044754,-582.29,0.00023547,30]
[380275133,1755631044778,-2058.34,0.00023547,30]
[380275134,1755631044804,-807.81,0.00023547,30]
[380275135,1755631044831,-2108.39,0.00023547,30]
[380275136,1755631044855,-400.0,0.00023547,30]
[380275137,1755631044881,-3236.93,0.00023547,30]
[380275138,1755631044906,-2755.38,0.00023547,30]
[380275139,1755631044931,-494.07,0.00023547,30]
[380275140,1755631044956,-771.8,0.00023547,30]
[380275141,1755631044980,-400.0,0.00023547,30]
[380275142,1755631045005,-1485.66,0.00023547,30]
[380275143,1755631045031,-400.0,0.00023547,30]
[380275144,1755631045059,-514.22,0.00023547,30]
[380275145,1755631045085,-1688.58,0.00023547,30]
[380275146,1755631045111,-400.0,0.00023547,30]
[380275147,1755631045138,-2731.01,0.00023547,30]
[380275148,1755631045164,-400.0,0.00023547,30]
[380275149,1755631045192,-716.5,0.00023547,30]
[380275150,1755631045220,-408.32,0.00023547,30]
[380275151,1755631045245,-400.0,0.00023547,30]
[380275152,1755631045271,-1382.11,0.00023547,30]
[380275153,1755631045298,-2951.24,0.00023547,30]
[380275154,1755631045325,-231.25,0.00023547,30]
[380275155,1755631045351,-6757.75,0.00023547,30]
[380275156,1755631045378,-812.97,0.00023547,30]
[380275157,1755631045403,-400.0,0.00023547,30]
[380275158,1755631045428,-1007.53,0.00023547,30]
[380275159,1755631045454,-1417.55,0.00023547,30]
[380275160,1755631045479,-400.0,0.00023547,30]
[380275161,1755631045509,-2420.72,0.00023547,30]
[380275162,1755631045538,-447.89,0.00023547,30]
[380275163,1755631045572,-400.0,0.00023547,30]
[380275164,1755631045598,-400.0,0.00023547,30]
[380275165,1755631045624,-632.73,0.00023547,30]
[380275166,1755631045649,-553.64,0.00023547,30]
[380275167,1755631045674,-744.53,0.00023547,30]
[380275168,1755631045698,-1672.31,0.00023547,30]
[380275169,1755631045722,-1648.48,0.00023547,30]
[380275170,1755631045748,-8716.72,0.00023547,30]
[380275171,1755631045773,-1174.9,0.00023547,30]
[380275172,1755631045799,-1247.73,0.00023547,30]
[380275173,1755631045824,-400.0,0.00023547,30]
[380275174,1755631045849,-2800.23,0.00023547,30]
[380275175,1755631045873,-400.0,0.00023547,30]
[380275176,1755631045897,-1855.67,0.00023547,30]
[380275177,1755631045922,-2735.6,0.00023547,30]
[380275178,1755631045951,-1549.4,0.00023547,30]
[380275179,1755631045975,-549.35,0.00023547,30]
[380275180,1755631046000,-1600.8,0.00023547,30]
[380275181,1755631046275,-1083.07,0.00023547,30]
[380275182,1755631046303,-2521.93,0.00023547,30]
[380275183,1755631046331,-407.03,0.00023547,30]
[380275184,1755631046356,-328.56,0.00023547,30]
[380275185,1755631046381,-1663.82,0.00023547,30]
[380275186,1755631046406,-1863.39,0.00023547,30]
[380275187,1755631046432,-2006.03,0.00023547,30]
[380275188,1755631046457,-867.04,0.00023547,30]
[380275189,1755631046489,-1558.27,0.00023547,30]
[380275190,1755631046515,-1625.91,0.00023547,30]
[380275191,1755631046540,-539.67,0.00023547,30]
[380275192,1755631046566,-3914.85,0.00023547,30]
[380275193,1755631046590,-801.03,0.00023547,30]
[380275194,1755631046614,-400.0,0.00023547,30]
[380275195,1755631046640,-1784.81,0.00023547,30]
[380275196,1755631046664,-400.0,0.00023547,30]
[380275197,1755631046691,-1785.17,0.00023547,30]
[380275198,1755631046718,-2242.56,0.00023547,30]
[380275199,1755631046743,-1700.25,0.00023547,30]
[380275200,1755631046773,-834.13,0.00023547,30]
[380275201,1755631046797,-1018.63,0.00023547,30]
[380275202,1755631046823,-484.61,0.00023547,30]
[380275203,1755631046850,-400.0,0.00023547,30]
[380275204,1755631046877,-400.0,0.00023547,30]
[380275205,1755631046901,-801.25,0.00023547,30]
[380275206,1755631046926,-1460.04,0.00023547,30]
[380275207,1755631046951,-4032.43,0.00023547,30]
[380275208,1755631046979,-2527.74,0.00023547,30]
[380275209,1755631047004,-4275.48,0.00023547,30]
[380275210,1755631047030,-400.0,0.00023547,30]
[380275211,1755631047056,-400.0,0.00023547,30]
[380275212,1755631047086,-1812.27,0.00023547,30]
[380275213,1755631047111,-400.0,0.00023547,30]
[380275214,1755631047138,-348.14,0.00023547,30]
[380275215,1755631047163,-400.0,0.00023547,30]
[380275216,1755631047189,-434.72,0.00023547,30]
[380275217,1755631047216,-7013.86,0.00023547,30]
[380275218,1755631047244,-1435.4,0.00023547,30]
[380275219,1755631047271,-1807.74,0.00023547,30]
[380275220,1755631047296,-1890.92,0.00023547,30]
[380275221,1755631047322,-4142.44,0.00023547,30]
[380275222,1755631047347,-400.0,0.00023547,30]
[380275223,1755631047372,-400.0,0.00023547,30]
[380275224,1755631047397,-400.0,0.00023547,30]
[380275225,1755631047423,-1487.81,0.00023547,30]
[380275226,1755631047447,-1775.43,0.00023547,30]
[380275227,1755631047473,-9303.97,0.00023547,30]
[380275228,1755631047499,-824.79,0.00023547,30]
[380275229,1755631047525,-2003.15,0.00023547,30]
[380275230,1755631047550,-400.0,0.00023547,30]
[380275231,1755631047578,-1357.73,0.00023547,30]
[380275232,1755631047603,-3458.05,0.00023547,30]
[380275233,1755631047627,-400.0,0.00023547,30]
[380275234,1755631047652,-400.0,0.00023547,30]
[380275235,1755631047676,-1146.31,0.00023547,30]
[380275236,1755631047700,-400.0,0.00023547,30]
[380275237,1755631047726,-1420.57,0.00023547,30]
[380275238,1755631047752,-2399.65,0.00023547,30]
[380275239,1755631047776,-5837.98,0.00023547,30]
[380275240,1755631047801,-8152.85,0.00023547,30]
[380275241,1755631047828,-400.0,0.00023547,30]
[380275242,1755631047856,-8014.73,0.00023547,30]
[380275243,1755631047881,-486.11,0.00023547,30]
[380275244,1755631047906,-3351.12,0.00023547,30]
[380275245,1755631047930,-713.75,0.00023547,30]
[380275246,1755631047955,-444.69,0.00023547,30]
[380275247,1755631047980,-400.0,0.00023547,30]
[380275248,1755631048004,-400.0,0.00023547,30]
[380275249,1755631048029,-630.29,0.00023547,30]
[380275250,1755631048055,-840.72,0.00023547,30]
[380275251,1755631048081,-5044.7,0.00023547,30]
[380275252,1755631048107,-3116.05,0.00023547,30]
[380275253,1755631048133,-2077.84,0.00023547,30]
[380275254,1755631048160,-400.0,0.00023547,30]
[380275255,1755631048186,-755.9,0.00023547,30]
[380275256,1755631048212,-400.0,0.00023547,30]
[380275257,1755631048237,-380.16937277,0.00023547,30]
[380275258,1755631048264,-3767.8,0.00023547,30]
[380275259,1755631048288,-400.0,0.00023547,30]
[380275260,1755631048315,-981.8,0.00023547,30]
[380275261,1755631048339,-458.85,0.00023547,30]
[380275262,1755631048364,-1623.73,0.00023547,30]
[380275263,1755631048389,-665.7,0.00023547,30]
[380275264,1755631048413,-510.44,0.00023547,30]
[380275265,1755631048437,-1621.47,0.00023547,30]
[380275266,1755631048465,-7442.7,0.00023547,30]
[380275267,1755631048490,-1470.22,0.00023547,30]
[380275268,1755631048514,-3397.55,0.00023547,30]
[380275269,1755631048538,-400.0,0.00023547,30]
[380275270,1755631048565,-400.0,0.00023547,30]
[380275271,1755631048591,-581.67,0.00023547,30]
[380275272,1755631048616,-2718.91,0.00023547,30]
[380275273,1755631048640,-1256.26,0.00023547,30]
[380275274,1755631048665,-2098.94,0.00023547,30]
[380275275,1755631048928,-1449.63,0.00023547,30]
[380275276,1755631048956,-400.0,0.00023821,30]
[380275277,1755631048982,-400.0,0.00023821,30]
[380275278,1755631049008,-400.0,0.00023821,30]
[380275279,1755631049034,-400.0,0.00023821,30]
[380275280,1755631049062,-400.0,0.00023821,30]
[380275281,1755631049088,-400.0,0.00023821,30]
[380275282,1755631049116,-591.41,0.00023821,30]
[380275283,1755631049143,-400.0,0.00023821,30]
[380275284,1755631049169,-1211.51,0.00023821,30]
[380275285,1755631049195,-657.43,0.00023821,30]
[380275286,1755631049223,-1321.19,0.00023821,30]
[380275287,1755631049250,-2333.41,0.00023821,30]
[380275288,1755631049276,-400.0,0.00023821,30]
[380275289,1755631049304,-3141.86,0.00023821,30]
[380275290,1755631049332,-400.0,0.00023821,30]
[380275291,1755631049360,-441.64,0.00023821,30]
[380275292,1755631049386,-895.33,0.00023821,30]
[380275293,1755631049411,-1312.21,0.00023821,30]
[380275294,1755631049436,-610.43,0.00023821,30]
[380275295,1755631049463,-5048.43,0.00023821,30]
[380275296,1755631049488,-912.37,0.00023821,30]
[380275297,1755631049513,-2638.42,0.00023821,30]
[380275298,1755631049539,-2777.22,0.00023821,30]
[380275299,1755631049565,-542.11,0.00023821,30]
[380275300,1755631049590,-400.0,0.00023821,30]
[380275301,1755631049615,-854.75,0.00023821,30]
[380275302,1755631049641,-400.0,0.00023821,30]
[380275303,1755631049666,-582.29,0.00023821,30]
[380275304,1755631049691,-2058.34,0.00023821,30]
[380275305,1755631049716,-807.81,0.00023821,30]
[380275306,1755631049741,-2108.39,0.00023821,30]
[380275307,1755631049769,-400.0,0.00023821,30]
[380275308,1755631049797,-3236.93,0.00023821,30]
[380275309,1755631049825,-2755.38,0.00023821,30]